[Event "Titled Tuesday Blitz February 01 B 2022"]
[White "Warmerdam, Max"]
[Black "Hua, Lefong"]
[WhiteFideId "1048104"]
[BlackFideId "2602253"]
[WhiteElo "2537"]
[BlackElo "2575"]
[Result "1-0"]
[Round "02"]
[TimeControl "180+1"]
[Date "2022.02.01"]
[WhiteClock "0:00:18"]
[BlackClock "0:00:13"]

1. d4 {[%clk 0:03:00]}  Nf6 {[%clk 0:03:00]} 2. c4 {[%clk 0:03:01]}  g6 {[%clk 0:03:00]} 3. g3 {[%clk 0:03:01]}  Bg7 {[%clk 0:03:00]} 4. Bg2 {[%clk 0:03:02]}  O-O {[%clk 0:03:01]} 5. Nc3 {[%clk 0:03:02]}  d6 {[%clk 0:03:02]} 6. Nf3 {[%clk 0:03:03]}  Nc6 {[%clk 0:03:02]} 7. O-O {[%clk 0:03:03]}  a6 {[%clk 0:03:03]} 8. d5 {[%clk 0:02:59]}  Na5 {[%clk 0:03:03]} 9. b3 {[%clk 0:02:58]}  c5 {[%clk 0:02:59]} 10. dxc6 {[%clk 0:02:57]}  Nxc6 {[%clk 0:02:59]} 11. Bg5 {[%clk 0:02:57]}  Be6 {[%clk 0:02:57]} 12. Rc1 {[%clk 0:02:53]}  Qa5 {[%clk 0:02:54]} 13. Qd2 {[%clk 0:02:37]}  Rfc8 {[%clk 0:02:48]} 14. a4 {[%clk 0:02:02]}  Rab8 {[%clk 0:02:39]} 15. Rfd1 {[%clk 0:01:58]}  Qb4 {[%clk 0:02:36]} 16. Qc2 {[%clk 0:01:58]}  Bf5 {[%clk 0:02:32]} 17. e4 {[%clk 0:01:54]}  Be6 {[%clk 0:02:30]} 18. h3 {[%clk 0:01:48]}  Na5 {[%clk 0:02:19]} 19. Nd4 {[%clk 0:01:48]}  Nc6 {[%clk 0:02:13]} 20. Nxe6 {[%clk 0:01:45]}  fxe6 {[%clk 0:02:14]} 21. h4 {[%clk 0:01:38]}  Qa5 {[%clk 0:02:06]} 22. Bd2 {[%clk 0:01:36]}  Nd4 {[%clk 0:02:03]} 23. Qb1 {[%clk 0:01:31]}  e5 {[%clk 0:02:01]} 24. Nd5 {[%clk 0:01:26]}  Qd8 {[%clk 0:01:59]} 25. Qd3 {[%clk 0:01:25]}  Nxd5 {[%clk 0:01:54]} 26. cxd5 {[%clk 0:01:12]}  Rxc1 {[%clk 0:01:53]} 27. Rxc1 {[%clk 0:01:12]}  Rc8 {[%clk 0:01:54]} 28. Bh3 {[%clk 0:01:13]}  Rxc1+ {[%clk 0:01:53]} 29. Bxc1 {[%clk 0:01:13]}  Qc7 {[%clk 0:01:52]} 30. Be3 {[%clk 0:01:10]}  a5 {[%clk 0:01:43]} 31. Kg2 {[%clk 0:01:07]}  h5 {[%clk 0:01:34]} 32. f4 {[%clk 0:00:52]}  Kh7 {[%clk 0:01:21]} 33. f5 {[%clk 0:00:47]}  Bf6 {[%clk 0:01:08]} 34. fxg6+ {[%clk 0:00:37]}  Kxg6 {[%clk 0:01:09]} 35. Bf5+ {[%clk 0:00:36]}  Kg7 {[%clk 0:01:05]} 36. Bxd4 {[%clk 0:00:30]}  exd4 {[%clk 0:01:04]} 37. Qd1 {[%clk 0:00:31]}  Qc3 {[%clk 0:00:51]} 38. Qxh5 {[%clk 0:00:29]}  Qd2+ {[%clk 0:00:44]} 39. Kh3 {[%clk 0:00:29]}  Qh6 {[%clk 0:00:31]} 40. Qxh6+ {[%clk 0:00:15]}  Kxh6 {[%clk 0:00:32]} 41. g4 {[%clk 0:00:16]}  Be5 {[%clk 0:00:32]} 42. g5+ {[%clk 0:00:16]}  Kh5 {[%clk 0:00:24]} 43. Bg4+ {[%clk 0:00:16]}  Kg6 {[%clk 0:00:23]} 44. Be2 {[%clk 0:00:17]}  Bf4 {[%clk 0:00:19]} 45. Kg4 {[%clk 0:00:17]}  Bd2 {[%clk 0:00:18]} 46. h5+ {[%clk 0:00:18]}  Kg7 {[%clk 0:00:19]} 47. Kf5 {[%clk 0:00:18]}  Be3 {[%clk 0:00:19]} 48. h6+ {[%clk 0:00:18]}  Kh7 {[%clk 0:00:18]} 49. Bd3 {[%clk 0:00:18]}  Bd2 {[%clk 0:00:18]} 50. Kg4 {[%clk 0:00:18]}  Kh8 {[%clk 0:00:16]} 51. Kh5 {[%clk 0:00:18]}  Be3 {[%clk 0:00:15]} 52. g6 {[%clk 0:00:18]}  Kg8 {[%clk 0:00:16]} 53. Be2 {[%clk 0:00:18]}  Bf4 {[%clk 0:00:13]} 54. Bg4 {[%clk 0:00:18]} 1-0


[Site "https://www.chess.com"]

[Event "Titled Tuesday Blitz February 01 B 2022"]
[White "Wieczorek, Oskar"]
[Black "Nepomniachtchi, Ian"]
[WhiteFideId "1133950"]
[BlackFideId "4168119"]
[WhiteElo "2319"]
[BlackElo "2740"]
[Result "1-0"]
[Round "02"]
[TimeControl "180+1"]
[Date "2022.02.01"]
[WhiteClock "0:00:19"]
[BlackClock "0:00:26"]

1. e4 {[%clk 0:03:00]}  c5 {[%clk 0:02:59]} 2. Nf3 {[%clk 0:03:00]}  d6 {[%clk 0:02:58]} 3. d4 {[%clk 0:02:57]}  cxd4 {[%clk 0:02:59]} 4. Nxd4 {[%clk 0:02:55]}  Nf6 {[%clk 0:02:59]} 5. Nc3 {[%clk 0:02:55]}  a6 {[%clk 0:03:00]} 6. h4 {[%clk 0:02:56]}  e5 {[%clk 0:02:56]} 7. Nb3 {[%clk 0:02:56]}  h6 {[%clk 0:02:56]} 8. Be3 {[%clk 0:02:46]}  Be7 {[%clk 0:02:53]} 9. Be2 {[%clk 0:02:46]}  Be6 {[%clk 0:02:47]} 10. Qd2 {[%clk 0:02:18]}  Nbd7 {[%clk 0:02:45]} 11. f4 {[%clk 0:02:10]}  exf4 {[%clk 0:02:40]} 12. Bxf4 {[%clk 0:02:10]}  Ne5 {[%clk 0:02:40]} 13. O-O-O {[%clk 0:02:10]}  Rc8 {[%clk 0:02:40]} 14. Kb1 {[%clk 0:02:08]}  Nfg4 {[%clk 0:02:32]} 15. Nd4 {[%clk 0:02:00]}  Nc4 {[%clk 0:02:10]} 16. Bxc4 {[%clk 0:01:52]}  Rxc4 {[%clk 0:02:10]} 17. Nxe6 {[%clk 0:01:48]}  fxe6 {[%clk 0:02:11]} 18. Qe2 {[%clk 0:01:48]}  Rxc3 {[%clk 0:02:08]} 19. Qxg4 {[%clk 0:01:49]}  Rc6 {[%clk 0:01:55]} 20. Qxe6 {[%clk 0:01:47]}  Rf8 {[%clk 0:01:41]} 21. Qg6+ {[%clk 0:01:37]}  Kd7 {[%clk 0:01:22]} 22. Qg4+ {[%clk 0:01:36]}  Kc7 {[%clk 0:01:19]} 23. e5 {[%clk 0:01:35]}  d5 {[%clk 0:01:14]} 24. e6+ {[%clk 0:01:30]}  Kc8 {[%clk 0:01:10]} 25. Bg3 {[%clk 0:01:03]}  b5 {[%clk 0:01:03]} 26. Rhe1 {[%clk 0:00:43]}  Kb7 {[%clk 0:01:02]} 27. Re5 {[%clk 0:00:38]}  d4 {[%clk 0:00:36]} 28. Rxd4 {[%clk 0:00:24]}  Rf1+ {[%clk 0:00:36]} 29. Re1 {[%clk 0:00:23]}  Rxe1+ {[%clk 0:00:35]} 30. Bxe1 {[%clk 0:00:24]}  Rd6 {[%clk 0:00:32]} 31. Qe4+ {[%clk 0:00:23]}  Kb6 {[%clk 0:00:23]} 32. Bf2 {[%clk 0:00:22]}  Rxd4 {[%clk 0:00:23]} 33. Bxd4+ {[%clk 0:00:23]}  Kc7 {[%clk 0:00:22]} 34. h5 {[%clk 0:00:21]}  Bf6 {[%clk 0:00:20]} 35. c3 {[%clk 0:00:19]}  Qe7 {[%clk 0:00:20]} 36. Qd5 {[%clk 0:00:18]}  Qd6 {[%clk 0:00:19]} 37. Qxd6+ {[%clk 0:00:16]}  Kxd6 {[%clk 0:00:20]} 38. Bxf6 {[%clk 0:00:17]}  gxf6 {[%clk 0:00:20]} 39. Kc2 {[%clk 0:00:18]}  Kxe6 {[%clk 0:00:21]} 40. Kd3 {[%clk 0:00:18]}  Kf5 {[%clk 0:00:20]} 41. b3 {[%clk 0:00:18]}  Kg4 {[%clk 0:00:21]} 42. c4 {[%clk 0:00:15]}  f5 {[%clk 0:00:21]} 43. c5 {[%clk 0:00:15]}  Kg3 {[%clk 0:00:22]} 44. c6 {[%clk 0:00:16]}  Kxg2 {[%clk 0:00:22]} 45. c7 {[%clk 0:00:17]}  f4 {[%clk 0:00:23]} 46. c8=Q {[%clk 0:00:17]}  f3 {[%clk 0:00:24]} 47. Qg4+ {[%clk 0:00:18]}  Kf2 {[%clk 0:00:24]} 48. Ke4 {[%clk 0:00:18]}  Ke2 {[%clk 0:00:25]} 49. Qxf3+ {[%clk 0:00:19]}  Kd2 {[%clk 0:00:26]} 50. Qd3+ {[%clk 0:00:19]}  Kc1 {[%clk 0:00:26]} 51. Qe2 {[%clk 0:00:19]} 1-0


[Site "https://www.chess.com"]

[Event "Titled Tuesday Blitz February 01 B 2022"]
[White "Abdrlauf, Elham"]
[Black "Yuan, Qingyu"]
[WhiteFideId "1533533"]
[BlackFideId "8609772"]
[WhiteElo "2334"]
[BlackElo "2359"]
[Result "1-0"]
[Round "03"]
[TimeControl "180+1"]
[Date "2022.02.01"]
[WhiteClock "0:00:23"]
[BlackClock "0:00:04"]

1. e4 {[%clk 0:03:00]}  c6 {[%clk 0:03:00]} 2. d4 {[%clk 0:03:00]}  d5 {[%clk 0:03:01]} 3. Nc3 {[%clk 0:03:00]}  dxe4 {[%clk 0:03:01]} 4. Nxe4 {[%clk 0:03:01]}  Nf6 {[%clk 0:03:02]} 5. Nxf6+ {[%clk 0:03:02]}  exf6 {[%clk 0:03:03]} 6. c3 {[%clk 0:03:02]}  Bd6 {[%clk 0:03:03]} 7. Bd3 {[%clk 0:03:03]}  O-O {[%clk 0:03:04]} 8. Qc2 {[%clk 0:03:03]}  Re8+ {[%clk 0:03:04]} 9. Ne2 {[%clk 0:03:04]}  h5 {[%clk 0:03:05]} 10. O-O {[%clk 0:03:05]}  h4 {[%clk 0:03:05]} 11. Bf4 {[%clk 0:03:05]}  Be6 {[%clk 0:02:46]} 12. Rfe1 {[%clk 0:02:58]}  Na6 {[%clk 0:02:44]} 13. h3 {[%clk 0:02:54]}  Nc7 {[%clk 0:02:43]} 14. Qd2 {[%clk 0:02:54]}  Bf8 {[%clk 0:02:36]} 15. c4 {[%clk 0:02:44]}  a5 {[%clk 0:02:29]} 16. Nc3 {[%clk 0:02:36]}  Qd7 {[%clk 0:02:15]} 17. Rad1 {[%clk 0:02:36]}  Rad8 {[%clk 0:02:14]} 18. b3 {[%clk 0:02:06]}  Bb4 {[%clk 0:02:11]} 19. Qb2 {[%clk 0:01:56]}  Bd6 {[%clk 0:01:25]} 20. Bxd6 {[%clk 0:01:32]}  Qxd6 {[%clk 0:01:26]} 21. Re4 {[%clk 0:01:33]}  f5 {[%clk 0:01:09]} 22. Rxh4 {[%clk 0:01:25]}  g5 {[%clk 0:01:04]} 23. Rh5 {[%clk 0:01:15]}  f6 {[%clk 0:01:05]} 24. Qe2 {[%clk 0:00:49]}  Qxd4 {[%clk 0:00:29]} 25. Bxf5 {[%clk 0:00:40]}  Qxd1+ {[%clk 0:00:05]} 26. Nxd1 {[%clk 0:00:37]}  Bxf5 {[%clk 0:00:05]} 27. Ne3 {[%clk 0:00:37]}  Bg6 {[%clk 0:00:05]} 28. Qf3 {[%clk 0:00:23]}  Bxh5 {[%clk 0:00:05]} 29. Qxh5 {[%clk 0:00:24]}  Re7 {[%clk 0:00:02]} 30. Nf5 {[%clk 0:00:23]}  Rf7 {[%clk 0:00:03]} 31. Nh6+ {[%clk 0:00:22]}  Kg7 {[%clk 0:00:03]} 32. Qxf7+ {[%clk 0:00:21]}  Kxh6 {[%clk 0:00:04]} 33. Qxf6+ {[%clk 0:00:22]}  Kh5 {[%clk 0:00:04]} 34. Qxd8 {[%clk 0:00:23]} 1-0


[Site "https://www.chess.com"]

[Event "Titled Tuesday Blitz February 01 B 2022"]
[White "Barp, Alberto"]
[Black "Warmerdam, Max"]
[WhiteFideId "872555"]
[BlackFideId "1048104"]
[WhiteElo "2229"]
[BlackElo "2537"]
[Result "1-0"]
[Round "03"]
[TimeControl "180+1"]
[Date "2022.02.01"]
[WhiteClock "0:00:17"]
[BlackClock "0:00:11"]

1. d4 {[%clk 0:02:55]}  d5 {[%clk 0:03:00]} 2. c4 {[%clk 0:02:52]}  e6 {[%clk 0:03:00]} 3. Nf3 {[%clk 0:02:51]}  a6 {[%clk 0:03:01]} 4. Bg5 {[%clk 0:02:49]}  Be7 {[%clk 0:03:00]} 5. Bxe7 {[%clk 0:02:49]}  Qxe7 {[%clk 0:03:01]} 6. Nbd2 {[%clk 0:02:43]}  Nf6 {[%clk 0:03:02]} 7. g3 {[%clk 0:02:43]}  b6 {[%clk 0:03:02]} 8. Bg2 {[%clk 0:02:41]}  Bb7 {[%clk 0:03:02]} 9. cxd5 {[%clk 0:02:41]}  exd5 {[%clk 0:03:02]} 10. O-O {[%clk 0:02:40]}  Nbd7 {[%clk 0:03:02]} 11. Rc1 {[%clk 0:02:37]}  c5 {[%clk 0:03:02]} 12. dxc5 {[%clk 0:02:36]}  bxc5 {[%clk 0:03:03]} 13. Nb3 {[%clk 0:02:32]}  O-O {[%clk 0:03:00]} 14. Na5 {[%clk 0:02:31]}  Rab8 {[%clk 0:03:01]} 15. Nxb7 {[%clk 0:02:25]}  Rxb7 {[%clk 0:03:02]} 16. b3 {[%clk 0:02:25]}  a5 {[%clk 0:03:00]} 17. Nd2 {[%clk 0:02:20]}  Re8 {[%clk 0:02:33]} 18. Re1 {[%clk 0:02:16]}  Ne5 {[%clk 0:02:29]} 19. Qc2 {[%clk 0:02:11]}  Rc7 {[%clk 0:02:26]} 20. Qc3 {[%clk 0:02:10]}  a4 {[%clk 0:02:21]} 21. b4 {[%clk 0:01:59]}  d4 {[%clk 0:02:18]} 22. Qc2 {[%clk 0:01:51]}  c4 {[%clk 0:02:17]} 23. Qxa4 {[%clk 0:01:50]}  c3 {[%clk 0:02:13]} 24. Nb3 {[%clk 0:01:49]}  Rc4 {[%clk 0:02:07]} 25. a3 {[%clk 0:01:45]}  Nfg4 {[%clk 0:01:56]} 26. h3 {[%clk 0:01:34]}  Nf6 {[%clk 0:01:51]} 27. Red1 {[%clk 0:01:33]}  Rd8 {[%clk 0:01:48]} 28. Na5 {[%clk 0:01:17]}  Rcc8 {[%clk 0:01:42]} 29. b5 {[%clk 0:01:17]}  d3 {[%clk 0:01:41]} 30. exd3 {[%clk 0:01:13]}  Nxd3 {[%clk 0:01:41]} 31. Nc6 {[%clk 0:01:07]}  Rxc6 {[%clk 0:01:40]} 32. bxc6 {[%clk 0:01:04]}  Nxc1 {[%clk 0:01:40]} 33. Rxc1 {[%clk 0:01:02]}  h5 {[%clk 0:01:15]} 34. Qb4 {[%clk 0:00:55]}  Qc7 {[%clk 0:01:15]} 35. Qxc3 {[%clk 0:00:50]}  h4 {[%clk 0:01:14]} 36. g4 {[%clk 0:00:39]}  Ne8 {[%clk 0:00:56]} 37. Qb3 {[%clk 0:00:35]}  Nd6 {[%clk 0:00:56]} 38. Qe3 {[%clk 0:00:32]}  Nb5 {[%clk 0:00:22]} 39. a4 {[%clk 0:00:26]}  Nd4 {[%clk 0:00:23]} 40. Rd1 {[%clk 0:00:25]}  Nxc6 {[%clk 0:00:22]} 41. Rc1 {[%clk 0:00:19]}  Rd6 {[%clk 0:00:10]} 42. Bxc6 {[%clk 0:00:16]}  Re6 {[%clk 0:00:09]} 43. Qc3 {[%clk 0:00:12]}  Qf4 {[%clk 0:00:08]} 44. Bf3 {[%clk 0:00:12]}  Re8 {[%clk 0:00:07]} 45. Kg2 {[%clk 0:00:12]}  Rd8 {[%clk 0:00:07]} 46. Qc4 {[%clk 0:00:12]}  Rd4 {[%clk 0:00:07]} 47. Qc8+ {[%clk 0:00:13]}  Kh7 {[%clk 0:00:07]} 48. Qf5+ {[%clk 0:00:13]}  Qxf5 {[%clk 0:00:08]} 49. gxf5 {[%clk 0:00:14]}  Rxa4 {[%clk 0:00:08]} 50. Rc7 {[%clk 0:00:14]}  f6 {[%clk 0:00:09]} 51. Rc5 {[%clk 0:00:13]}  Rf4 {[%clk 0:00:08]} 52. Bg4 {[%clk 0:00:13]}  Kh6 {[%clk 0:00:08]} 53. Rd5 {[%clk 0:00:13]}  Kg5 {[%clk 0:00:09]} 54. Rd7 {[%clk 0:00:13]}  Kh6 {[%clk 0:00:09]} 55. Rd8 {[%clk 0:00:14]}  Kh7 {[%clk 0:00:08]} 56. Rd3 {[%clk 0:00:13]}  Kh6 {[%clk 0:00:08]} 57. Rf3 {[%clk 0:00:14]}  Rd4 {[%clk 0:00:09]} 58. Re3 {[%clk 0:00:15]}  Rf4 {[%clk 0:00:09]} 59. f3 {[%clk 0:00:14]}  Rd4 {[%clk 0:00:09]} 60. Re4 {[%clk 0:00:14]}  Rd2+ {[%clk 0:00:09]} 61. Kf1 {[%clk 0:00:14]}  Kg5 {[%clk 0:00:10]} 62. f4+ {[%clk 0:00:15]}  Kh6 {[%clk 0:00:10]} 63. Re2 {[%clk 0:00:16]}  Rd4 {[%clk 0:00:10]} 64. Kf2 {[%clk 0:00:16]}  Rxf4+ {[%clk 0:00:10]} 65. Ke3 {[%clk 0:00:16]}  Rb4 {[%clk 0:00:11]} 66. Kf3 {[%clk 0:00:17]}  Rb3+ {[%clk 0:00:11]} 67. Re3 {[%clk 0:00:17]}  Rb4 {[%clk 0:00:12]} 68. Rd3 {[%clk 0:00:16]}  Ra4 {[%clk 0:00:12]} 69. Rd8 {[%clk 0:00:16]}  Kg5 {[%clk 0:00:12]} 70. Rg8 {[%clk 0:00:16]}  Kh6 {[%clk 0:00:10]} 71. Rh8+ {[%clk 0:00:16]}  Kg5 {[%clk 0:00:11]} 72. Rh5# {[%clk 0:00:17]} 1-0


[Site "https://www.chess.com"]

[Event "Titled Tuesday Blitz February 01 B 2022"]
[White "Boros, Denes"]
[Black "Pinheiro, Iung Alicio de O."]
[WhiteFideId "722340"]
[BlackFideId "2104350"]
[WhiteElo "2464"]
[BlackElo "2591"]
[Result "1-0"]
[Round "03"]
[TimeControl "180+1"]
[Date "2022.02.01"]
[WhiteClock "0:01:38"]
[BlackClock "0:00:36"]

1. d4 {[%clk 0:03:00]}  Nf6 {[%clk 0:02:58]} 2. Nf3 {[%clk 0:03:01]}  g6 {[%clk 0:02:58]} 3. c4 {[%clk 0:03:00]}  Bg7 {[%clk 0:02:57]} 4. Nc3 {[%clk 0:03:01]}  d5 {[%clk 0:02:57]} 5. Bg5 {[%clk 0:03:00]}  dxc4 {[%clk 0:02:56]} 6. Qa4+ {[%clk 0:02:58]}  c6 {[%clk 0:02:50]} 7. Qxc4 {[%clk 0:02:58]}  O-O {[%clk 0:02:49]} 8. e4 {[%clk 0:02:56]}  b5 {[%clk 0:02:43]} 9. Qd3 {[%clk 0:02:56]}  c5 {[%clk 0:02:27]} 10. dxc5 {[%clk 0:02:51]}  Qc7 {[%clk 0:02:14]} 11. e5 {[%clk 0:02:43]}  Ng4 {[%clk 0:02:08]} 12. Nd5 {[%clk 0:02:33]}  Qxc5 {[%clk 0:02:07]} 13. Qd4 {[%clk 0:02:15]}  Qxd4 {[%clk 0:01:28]} 14. Nxd4 {[%clk 0:02:12]}  Bxe5 {[%clk 0:01:27]} 15. Nxb5 {[%clk 0:02:10]}  f6 {[%clk 0:01:22]} 16. Bd2 {[%clk 0:02:03]}  Na6 {[%clk 0:00:52]} 17. h3 {[%clk 0:01:51]}  e6 {[%clk 0:00:52]} 18. Ne7+ {[%clk 0:01:50]}  Kf7 {[%clk 0:00:51]} 19. Nxc8 {[%clk 0:01:50]}  Nxf2 {[%clk 0:00:43]} 20. Ncd6+ {[%clk 0:01:45]}  Ke7 {[%clk 0:00:42]} 21. Kxf2 {[%clk 0:01:45]}  Nc5 {[%clk 0:00:36]} 22. Bb4 {[%clk 0:01:38]} 1-0


[Site "https://www.chess.com"]

[Event "Titled Tuesday Blitz February 01 B 2022"]
[White "Ezat, Mohamed"]
[Black "Yoo, Christopher Woojin"]
[WhiteFideId "10600906"]
[BlackFideId "30909694"]
[WhiteElo "2386"]
[BlackElo "2105"]
[Result "0-1"]
[Round "03"]
[TimeControl "180+1"]
[Date "2022.02.01"]
[WhiteClock "0:00:07"]
[BlackClock "0:00:02"]

1. d4 {[%clk 0:03:00]}  Nf6 {[%clk 0:02:58]} 2. c4 {[%clk 0:03:01]}  e6 {[%clk 0:02:56]} 3. Nc3 {[%clk 0:03:01]}  Bb4 {[%clk 0:02:54]} 4. e3 {[%clk 0:03:01]}  O-O {[%clk 0:02:53]} 5. a3 {[%clk 0:03:02]}  Be7 {[%clk 0:02:49]} 6. b4 {[%clk 0:02:41]}  a5 {[%clk 0:02:47]} 7. b5 {[%clk 0:02:40]}  d5 {[%clk 0:02:43]} 8. c5 {[%clk 0:02:31]}  c6 {[%clk 0:02:33]} 9. a4 {[%clk 0:02:26]}  b6 {[%clk 0:02:28]} 10. cxb6 {[%clk 0:02:25]}  Qxb6 {[%clk 0:02:27]} 11. Rb1 {[%clk 0:02:24]}  Bb4 {[%clk 0:02:21]} 12. Bd2 {[%clk 0:02:24]}  c5 {[%clk 0:02:22]} 13. Nf3 {[%clk 0:02:22]}  Bb7 {[%clk 0:02:21]} 14. dxc5 {[%clk 0:02:19]}  Qxc5 {[%clk 0:02:20]} 15. Rc1 {[%clk 0:02:18]}  Nbd7 {[%clk 0:02:09]} 16. Be2 {[%clk 0:02:15]}  Qd6 {[%clk 0:02:03]} 17. O-O {[%clk 0:02:13]}  Rac8 {[%clk 0:02:03]} 18. Nd4 {[%clk 0:02:03]}  Nc5 {[%clk 0:01:53]} 19. Nb3 {[%clk 0:01:59]}  Nfe4 {[%clk 0:01:40]} 20. Nxe4 {[%clk 0:01:57]}  Nxe4 {[%clk 0:01:39]} 21. Bxb4 {[%clk 0:01:47]}  Qxb4 {[%clk 0:01:40]} 22. Bd3 {[%clk 0:01:22]}  Nc3 {[%clk 0:01:23]} 23. Qc2 {[%clk 0:01:14]}  Nxa4 {[%clk 0:01:22]} 24. Bxh7+ {[%clk 0:01:00]}  Kh8 {[%clk 0:01:22]} 25. Qd3 {[%clk 0:00:59]}  Rc4 {[%clk 0:00:36]} 26. Nd4 {[%clk 0:00:30]}  Nc5 {[%clk 0:00:35]} 27. Qb1 {[%clk 0:00:22]}  Rc8 {[%clk 0:00:29]} 28. Rxc4 {[%clk 0:00:20]}  dxc4 {[%clk 0:00:28]} 29. Bc2 {[%clk 0:00:19]}  c3 {[%clk 0:00:23]} 30. Qd1 {[%clk 0:00:18]}  g6 {[%clk 0:00:20]} 31. Qg4 {[%clk 0:00:18]}  Kg7 {[%clk 0:00:17]} 32. h4 {[%clk 0:00:18]}  e5 {[%clk 0:00:12]} 33. Nf5+ {[%clk 0:00:18]}  Kf8 {[%clk 0:00:12]} 34. Qg5 {[%clk 0:00:18]}  gxf5 {[%clk 0:00:12]} 35. Bxf5 {[%clk 0:00:17]}  Re8 {[%clk 0:00:07]} 36. h5 {[%clk 0:00:17]}  Ne6 {[%clk 0:00:07]} 37. Qf6 {[%clk 0:00:17]}  Qd6 {[%clk 0:00:02]} 38. h6 {[%clk 0:00:16]}  Qd8 {[%clk 0:00:02]} 39. Qxe5 {[%clk 0:00:10]}  Qg5 {[%clk 0:00:02]} 40. h7 {[%clk 0:00:07]}  Qxg2# {[%clk 0:00:02]} 0-1


[Site "https://www.chess.com"]

[Event "Titled Tuesday Blitz February 01 B 2022"]
[White "Fernandez, Nelson Wilfredo"]
[Black "Zhigalko, Sergei"]
[WhiteFideId "8401594"]
[BlackFideId "13502956"]
[WhiteElo "1899"]
[BlackElo "2662"]
[Result "0-1"]
[Round "03"]
[TimeControl "180+1"]
[Date "2022.02.01"]
[WhiteClock "0:00:02"]
[BlackClock "0:00:02"]

1. d4 {[%clk 0:02:59]}  Nf6 {[%clk 0:02:59]} 2. c4 {[%clk 0:02:59]}  e6 {[%clk 0:02:59]} 3. Nc3 {[%clk 0:03:00]}  Bb4 {[%clk 0:02:59]} 4. a3 {[%clk 0:03:00]}  Bxc3+ {[%clk 0:02:59]} 5. bxc3 {[%clk 0:03:01]}  c5 {[%clk 0:02:58]} 6. f3 {[%clk 0:03:01]}  d5 {[%clk 0:02:32]} 7. cxd5 {[%clk 0:02:59]}  exd5 {[%clk 0:02:33]} 8. e3 {[%clk 0:02:58]}  O-O {[%clk 0:02:33]} 9. Bd3 {[%clk 0:02:58]}  Re8 {[%clk 0:02:33]} 10. Ne2 {[%clk 0:02:58]}  b6 {[%clk 0:02:33]} 11. O-O {[%clk 0:02:57]}  Ba6 {[%clk 0:02:34]} 12. Ng3 {[%clk 0:02:53]}  Bxd3 {[%clk 0:02:26]} 13. Qxd3 {[%clk 0:02:54]}  Nc6 {[%clk 0:02:27]} 14. Bd2 {[%clk 0:02:49]}  Rc8 {[%clk 0:02:25]} 15. Rae1 {[%clk 0:02:49]}  g6 {[%clk 0:02:16]} 16. e4 {[%clk 0:02:13]}  cxd4 {[%clk 0:02:13]} 17. cxd4 {[%clk 0:02:12]}  dxe4 {[%clk 0:01:35]} 18. fxe4 {[%clk 0:02:10]}  Ng4 {[%clk 0:01:36]} 19. Bc3 {[%clk 0:02:04]}  Qd7 {[%clk 0:01:23]} 20. Rd1 {[%clk 0:01:48]}  Qe7 {[%clk 0:00:21]} 21. Qf3 {[%clk 0:01:09]}  f5 {[%clk 0:00:18]} 22. Rfe1 {[%clk 0:00:33]}  f4 {[%clk 0:00:02]} 23. Qxg4 {[%clk 0:00:12]}  fxg3 {[%clk 0:00:02]} 24. Qxg3 {[%clk 0:00:13]}  Qxa3 {[%clk 0:00:01]} 25. d5 {[%clk 0:00:13]}  Ne5 {[%clk 0:00:01]} 26. Bxe5 {[%clk 0:00:12]}  Qc5+ {[%clk 0:00:02]} 27. Kh1 {[%clk 0:00:11]}  Qc2 {[%clk 0:00:03]} 28. Ba1 {[%clk 0:00:05]}  Rxe4 {[%clk 0:00:03]} 29. h3 {[%clk 0:00:04]}  Rce8 {[%clk 0:00:02]} 30. Rc1 {[%clk 0:00:04]}  Qd2 {[%clk 0:00:03]} 31. Rf1 {[%clk 0:00:02]}  Re2 {[%clk 0:00:02]} 32. Qf3 {[%clk 0:00:02]}  Rf2 {[%clk 0:00:02]} 0-1


[Site "https://www.chess.com"]